bitfinex/quotes_ETHUSD_20241122
["timestamp","ask_amount","ask_price","bid_price","bid_amount"]
[1732317001085,0.0319113,3306.2,3305.4,2.77664579]
[1732317001480,0.0319113,3306.2,3305.5,0.04749519]
[1732317004107,0.9515,3306.0,3305.5,0.04749519]
[1732317004314,0.01,3306.8,3305.5,0.04749519]
[1732317004315,0.9515,3305.8,3305.5,0.04749519]
[1732317004484,0.9515,3305.8,3305.1,3.07814579]
[1732317004987,0.0319113,3305.7,3305.2,0.0473186]
[1732317005516,0.55,3305.6,3305.2,0.0473186]
[1732317005724,0.55,3305.7,3304.9,0.3015]
[1732317005912,0.0319113,3305.6,3305.3,0.0473387]
[1732317006125,0.5819113,3305.7,3304.9,0.3015]
[1732317006641,0.55,3305.4,3305.0,0.0473387]
[1732317006924,0.0319113,3305.3,3304.4,0.3015]
[1732317007128,0.55,3305.2,3305.1,0.04734731]
[1732317007333,0.55,3305.2,3304.4,0.3015]
[1732317007490,0.9515,3305.0,3304.4,0.3015]
[1732317007696,0.0319113,3304.9,3304.5,0.04734731]
[1732317008613,0.9515,3305.0,3304.5,0.04734731]
[1732317009362,0.0319113,3304.9,3304.5,0.04734731]
[1732317010827,0.9515,3305.0,3304.5,0.04734731]
[1732317010994,0.0319113,3304.9,3304.5,0.04734731]
[1732317011197,0.9515,3305.0,3304.5,0.04734731]
[1732317011735,0.55,3305.3,3304.6,1.2487]
[1732317012096,0.55,3305.3,3304.7,0.04742916]
[1732317012727,0.5819113,3305.3,3304.7,0.04742916]
[1732317013271,0.55,3305.1,3304.7,0.04742916]
[1732317013468,0.0319113,3305.0,3304.5,0.3015]
[1732317013762,0.55,3304.9,3304.8,0.0475153]
[1732317013966,0.55,3304.9,3304.4,0.3015]
[1732317014165,0.55,3304.9,3304.8,0.0475153]
[1732317014331,0.5819113,3305.1,3304.8,0.0475153]
[1732317014759,0.5819113,3305.1,3304.4,0.3015]
[1732317014961,0.55,3305.1,3304.9,0.0475153]
[1732317015165,0.55,3305.1,3304.4,0.3015]
[1732317015472,0.9333,3305.2,3304.4,0.3015]
[1732317015631,0.9333,3305.2,3304.6,0.3015]
[1732317016233,0.9333,3305.2,3304.7,0.0475153]
[1732317016731,0.9332,3305.9,3304.8,0.9781]
[1732317016945,0.0319113,3305.8,3304.9,0.38022611]
[1732317017132,0.0319113,3305.8,3304.9,0.42771125]
[1732317017635,0.0319113,3305.8,3304.9,0.72921125]
[1732317018055,0.55,3305.7,3304.9,0.42771125]
[1732317018258,0.55,3305.5,3304.9,0.04748514]
[1732317018461,0.55,3305.3,3304.9,0.04748514]
[1732317019730,3.0419113,3306.7,3304.9,0.04748514]
[1732317019936,0.55,3306.6,3304.9,0.04748514]
[1732317020167,0.9332,3306.3,3305.0,0.40255851]
[1732317020466,0.9332,3306.3,3305.2,0.9781]
[1732317020629,0.0319113,3306.2,3305.2,0.9781]
[1732317020833,0.9332,3306.3,3305.2,0.9781]
[1732317021034,0.0319113,3306.2,3305.3,0.04742053]
[1732317021230,0.9332,3306.3,3305.3,0.42763716]
[1732317022037,0.9332,3307.0,3305.6,0.9781]
[1732317022349,0.9332,3307.0,3305.8,2.77664579]
[1732317022655,0.9651113,3307.0,3305.9,1.02548464]
[1732317022861,0.0319113,3306.9,3305.9,1.02548464]
[1732317023368,0.9332,3306.8,3305.9,0.04738464]
[1732317023547,0.9651113,3306.8,3305.9,0.04738464]
[1732317023745,0.9651113,3306.8,3305.6,3.9781]
[1732317023944,0.9332,3306.8,3306.1,3.75474579]
[1732317024142,0.9332,3306.8,3306.1,4.13495194]
[1732317024343,0.9332,3306.8,3306.2,0.04717365]
[1732317024865,0.0319113,3306.7,3306.2,0.04717365]
[1732317025259,0.55,3306.6,3306.2,0.04717365]
[1732317025939,0.55,3306.7,3306.2,0.04717365]
[1732317026273,0.0319113,3306.6,3306.2,0.04717365]
[1732317026478,0.55,3306.5,3306.2,0.04717365]
[1732317026642,0.55,3306.7,3306.2,0.04717365]
[1732317027229,0.5819113,3307.0,3306.2,0.04717365]
[1732317029172,0.55,3307.0,3306.2,0.04717365]
[1732317029364,0.9332,3307.4,3306.4,2.77664579]
[1732317029665,0.9332,3307.4,3306.5,0.04711912]
[1732317029860,0.9332,3307.4,3306.6,0.9781]
[1732317030066,0.9332,3308.0,3306.6,0.9781]
[1732317030372,0.0319113,3307.9,3306.6,0.9781]
[1732317031372,0.9332,3307.7,3306.6,0.9781]
[1732317031679,0.55,3307.5,3306.7,0.04711912]
[1732317031982,0.55,3307.3,3306.7,0.04711912]
[1732317032138,0.55,3307.1,3306.7,0.04711912]
[1732317032343,0.55,3307.1,3306.7,0.07801646]
[1732317032878,1.4348,3307.1,3306.7,0.07801646]
[1732317033451,0.55,3306.9,3306.7,0.07801646]
[1732317033764,0.5819113,3306.8,3306.7,0.07801646]
[1732317033936,0.55,3306.8,3306.7,0.07801646]
[1732317034136,0.55,3306.9,3306.3,0.8807]
[1732317034878,0.55,3306.9,3306.4,0.07521787]
[1732317035245,0.55,3307.0,3306.4,0.07521787]
[1732317035650,0.55,3306.8,3306.4,0.07521787]
[1732317035983,0.5819113,3306.8,3306.4,0.07521787]
[1732317036365,0.5819113,3306.8,3306.0,0.8807]
[1732317036566,0.55,3306.6,3306.1,0.07526807]
[1732317036893,0.55,3306.4,3306.1,0.07526807]
[1732317037451,0.55,3306.6,3306.1,0.07526807]
[1732317037679,0.55,3306.4,3306.1,0.07526807]
[1732317037983,0.55,3306.2,3306.1,0.07526807]
[1732317038355,0.55,3306.5,3305.8,3.8807]
[1732317038749,0.55,3306.5,3305.9,0.07526807]
[1732317039149,0.55,3306.3,3305.9,0.07526807]
[1732317039368,0.0319113,3306.2,3305.9,0.07526807]
[1732317039657,0.55,3306.3,3305.9,0.07526807]
[1732317039967,0.55,3306.1,3305.9,0.07526807]
[1732317040382,0.55,3306.3,3305.9,0.07526807]
[1732317040582,0.55,3306.3,3305.5,0.8807]
[1732317040583,0.55,3306.1,3305.5,0.8807]
[1732317040953,0.55,3306.1,3305.6,0.07439282]
[1732317041355,0.55,3306.1,3305.2,0.8807]
[1732317041695,0.55,3306.1,3305.3,0.07439282]
[1732317042754,0.55,3305.9,3305.3,0.07439282]
[1732317043088,0.0319113,3305.8,3305.3,0.07439282]
[1732317043301,0.55,3305.7,3305.3,0.07439282]
[1732317043592,0.55,3305.7,3305.4,0.07442439]
[1732317043792,0.55,3306.0,3305.2,0.8807]
[1732317043999,0.55,3305.8,3305.3,0.07442439]
[1732317044300,0.55,3305.6,3305.2,0.8807]
[1732317044511,0.55,3305.6,3305.4,0.07445597]
[1732317044798,0.55,3305.6,3305.3,0.07464971]
[1732317044982,0.55,3305.6,3305.2,1.24643458]
[1732317045189,0.55,3305.6,3305.3,0.07464683]
[1732317045494,0.55,3305.6,3305.2,1.24643458]
[1732317046299,0.55,3305.6,3305.3,0.07464683]
[1732317046669,0.55,3305.6,3305.2,1.24643458]
[1732317046875,0.55,3305.6,3305.4,0.07464683]
[1732317047071,0.55,3305.6,3305.2,1.24643458]
[1732317047279,0.55,3305.6,3305.5,0.07464683]
[1732317047503,0.55,3305.6,3305.2,1.24643458]
[1732317047700,0.55,3305.6,3305.5,0.07464683]
[1732317047908,0.55,3305.6,3305.2,1.24643458]
[1732317048089,0.55,3305.6,3305.5,0.07464683]
[1732317048764,0.55,3305.6,3305.2,1.24643458]
[1732317048965,0.55,3305.6,3305.3,0.07464683]
[1732317049165,0.55,3305.6,3305.2,1.24643458]
[1732317049401,0.55,3305.6,3305.3,0.07212891]
[1732317049609,0.55,3305.6,3305.2,1.24643458]
[1732317049764,0.55,3305.6,3304.9,0.3015]
[1732317049765,0.0319113,3305.5,3305.3,0.07212891]
[1732317050100,0.55,3305.4,3305.3,0.07212891]
[1732317050298,0.0319113,3305.5,3305.0,0.3015]
[1732317050299,0.55,3305.5,3305.0,0.3015]
[1732317050599,0.55,3305.3,3305.0,0.3015]
[1732317050830,0.55,3305.5,3304.9,0.8807]
[1732317051123,0.55,3305.3,3304.7,2.77664579]
[1732317051687,0.55,3305.5,3304.7,2.77664579]
[1732317052284,0.55,3305.5,3304.7,2.80690341]
[1732317052514,0.55,3305.5,3304.8,0.9033]
[1732317053430,0.55,3305.5,3304.9,0.07212891]
[1732317055189,0.55,3305.3,3304.9,0.07212891]
[1732317055606,0.55,3305.5,3304.9,0.07212891]
[1732317056390,0.55,3305.5,3305.2,2.77664579]
[1732317056741,0.891,3306.3,3305.3,0.892]
[1732317057028,0.891,3306.3,3305.3,0.96412891]
[1732317057428,0.0319113,3306.2,3305.3,0.96412891]
[1732317058130,0.55,3306.1,3305.3,0.96412891]
[1732317058285,0.55,3305.9,3305.3,0.96412891]
[1732317058986,0.55,3305.8,3305.3,0.07212891]
[1732317059191,0.55,3305.6,3304.9,0.892]
[1732317059493,0.55,3305.4,3305.0,0.07212891]
[1732317059815,0.55,3305.6,3305.0,0.07212891]
[1732317059990,0.55,3305.4,3305.0,0.07212891]
[1732317060594,0.55,3305.6,3305.0,0.07212891]
[1732317060836,0.55,3305.2,3304.8,2.77664579]
[1732317061121,0.55,3305.4,3305.1,0.07213176]
[1732317061321,0.55,3305.6,3304.8,2.77664579]
[1732317061529,0.55,3305.6,3305.2,0.06977911]
[1732317061688,0.55,3305.6,3304.8,2.77664579]
[1732317061891,0.55,3305.6,3305.3,0.06977911]
[1732317062131,0.5819113,3305.6,3304.8,2.77664579]
[1732317062337,0.5819113,3305.6,3305.4,0.0697649]
[1732317062628,0.5819113,3305.6,3305.5,0.0697649]
[1732317062828,0.55,3305.6,3305.5,0.0697649]
[1732317063025,0.5819113,3305.6,3304.8,2.77664579]
[1732317063244,0.55,3305.6,3305.5,0.0697649]
[1732317063445,0.5819113,3305.6,3304.8,2.77664579]
[1732317063733,0.55,3305.6,3305.5,0.0697649]
[1732317063946,0.55,3305.6,3304.8,2.77664579]
[1732317064142,0.55,3305.6,3305.5,0.0697649]
[1732317064301,0.55,3305.6,3304.8,2.77664579]
[1732317064501,0.55,3305.6,3305.5,0.0697649]
[1732317064708,0.55,3305.6,3304.8,2.77664579]
[1732317064938,0.55,3305.6,3305.5,0.0697649]
[1732317065537,0.55,3305.6,3304.8,2.77664579]
[1732317065764,0.55,3305.6,3305.5,0.0697649]
[1732317066047,0.55,3305.6,3304.9,0.0697649]
[1732317066258,0.55,3305.6,3304.8,2.77664579]
[1732317066421,0.55,3305.7,3305.0,0.0697649]
[1732317066620,0.55,3305.7,3304.9,0.66836458]
[1732317066850,0.0319113,3305.6,3305.0,0.0697649]
[1732317067166,0.55,3305.7,3305.0,0.42124243]
[1732317067825,0.55,3305.5,3305.0,0.42124243]
[1732317068351,0.55,3305.7,3305.0,0.42124243]
[1732317068546,0.55,3305.5,3305.0,0.42124243]
[1732317068726,0.55,3305.5,3305.1,1.31431416]
[1732317068925,0.55,3305.6,3305.1,1.31431416]
[1732317069354,0.55,3305.7,3305.2,0.0697649]
[1732317069508,0.5819113,3305.7,3305.2,0.0697649]
[1732317069706,0.55,3305.7,3305.2,0.0697649]
[1732317069946,0.55,3305.5,3305.2,0.0697649]
[1732317070255,0.55,3305.7,3305.2,0.0697649]
[1732317070424,0.55,3305.5,3305.2,0.0697649]
[1732317070762,0.55,3305.7,3305.2,0.0697649]
[1732317071246,0.55,3305.7,3305.3,0.0697649]
[1732317071756,0.55,3305.7,3304.9,0.39699945]
[1732317071918,0.55,3305.7,3305.4,0.06973933]
[1732317072115,0.55,3305.7,3304.9,0.39699945]
[1732317072622,0.55,3305.7,3305.0,0.06973933]
[1732317073027,0.55,3305.7,3305.1,0.9339]
[1732317073346,0.55,3305.7,3305.1,1.10411388]
[1732317073727,0.55,3305.7,3305.2,0.06973933]
[1732317074618,0.0319113,3305.6,3305.2,0.06973933]
[1732317074818,0.55,3305.7,3304.8,1.2354]
[1732317075126,0.5819113,3305.7,3304.9,0.06973933]
[1732317075548,0.55,3305.7,3304.9,0.06973933]
[1732317075846,0.5819113,3305.7,3304.9,0.06973933]
[1732317076060,0.55,3305.7,3304.9,0.06973933]
[1732317076358,0.5819113,3305.7,3304.9,0.06973933]
[1732317076531,0.55,3305.7,3304.9,0.06973933]
[1732317076729,0.5819113,3305.7,3304.9,0.47790271]
[1732317077126,0.9477,3305.6,3304.9,0.06973933]
[1732317077318,0.5819113,3305.5,3304.9,0.06973933]
[1732317077755,0.5819113,3305.5,3304.6,0.3015]
[1732317078056,0.55,3305.5,3304.6,0.3015]
[1732317078357,0.55,3305.5,3304.7,0.0697777]
[1732317079151,0.5819113,3305.5,3304.7,0.0697777]
[1732317079462,0.55,3305.5,3304.7,0.0697777]
[1732317079768,0.5819113,3305.5,3304.7,0.0697777]
[1732317080132,0.55,3305.5,3304.7,0.0697777]
[1732317080348,0.5819113,3305.5,3304.7,0.0697777]
[1732317081092,0.55,3305.3,3304.7,0.0697777]
[1732317081586,0.0319113,3305.2,3304.7,0.0697777]
[1732317081784,0.55,3305.1,3304.7,0.0697777]
[1732317082186,0.55,3305.3,3304.5,1.2354]
[1732317082690,0.55,3305.3,3304.6,0.06747601]
[1732317082847,0.0319113,3305.5,3304.6,0.06747601]
[1732317082848,0.55,3305.1,3304.6,0.06747601]
[1732317083247,0.55,3305.3,3304.6,0.06747601]
[1732317083478,0.55,3305.1,3304.6,0.06747601]
[1732317083952,0.55,3305.4,3304.6,0.06747601]
[1732317084208,0.5819113,3305.5,3304.6,0.06747601]
[1732317085254,0.55,3305.3,3304.6,0.06747601]
[1732317085449,0.55,3305.5,3304.6,0.06747601]
[1732317085674,0.5819113,3305.5,3304.6,0.06747601]
[1732317088304,0.55,3305.5,3304.6,0.06747601]
[1732317088622,0.55,3305.2,3304.6,0.06747601]
[1732317088927,0.55,3305.0,3304.6,0.06747601]
[1732317089123,0.55,3304.8,3304.6,0.06747601]
[1732317092301,0.55,3305.1,3304.6,0.06747601]
[1732317092502,0.55,3304.9,3304.6,0.06747601]
[1732317092720,0.55,3304.7,3304.6,0.06747601]
[1732317094427,0.5819113,3304.7,3304.0,0.9593]
[1732317094889,0.5819113,3304.7,3304.1,0.0675637]
[1732317098006,0.55,3304.7,3304.1,0.0675637]
[1732317098318,0.5819113,3304.7,3303.9,1.31467577]
[1732317098491,0.5819113,3304.7,3304.2,0.06763443]
[1732317098908,0.5819113,3304.7,3303.9,1.31467577]
[1732317099231,0.55,3304.7,3304.3,0.06763443]
[1732317099398,0.55,3304.7,3304.2,2.27397577]
[1732317099588,0.55,3304.7,3304.4,0.06763443]
[1732317099783,0.55,3304.7,3304.3,0.06763585]
[1732317100006,0.55,3304.7,3304.2,2.27397577]
[1732317100318,0.55,3305.0,3304.2,2.27397577]
[1732317100489,0.5819113,3305.0,3304.3,0.06763585]
[1732317100696,0.5819113,3305.0,3304.2,2.27397577]
[1732317101096,0.55,3305.0,3304.2,2.27397577]
[1732317102296,0.55,3305.0,3304.5,1.31467577]
[1732317102728,0.55,3305.0,3304.6,0.06769385]
[1732317103693,0.55,3305.3,3304.8,1.31467577]
[1732317103899,0.55,3305.3,3304.7,0.9593]
[1732317104321,0.55,3305.3,3304.8,0.06769385]
[1732317104801,0.55,3305.3,3304.8,1.38236962]
[1732317105134,0.9081,3305.8,3305.1,1.31467577]
[1732317105434,0.9081,3305.8,3305.2,0.9593]
[1732317105601,0.9081,3305.8,3305.2,1.02691604]
[1732317106934,0.5819113,3305.7,3305.2,1.02691604]
[1732317107239,0.55,3305.7,3305.2,1.02691604]
[1732317107715,0.55,3306.0,3305.3,1.31467577]
[1732317107899,0.9081,3306.3,3305.8,0.9593]
[1732317108410,0.9081,3306.3,3305.9,0.06753119]
[1732317108838,0.0319113,3306.5,3305.9,0.06753119]
[1732317109604,1.31467577,3306.9,3306.1,1.31467577]
[1732317109605,0.9081,3306.9,3306.1,1.31467577]
[1732317109836,0.9081,3306.9,3306.4,0.9593]
[1732317110040,1.8162,3307.1,3306.4,0.9593]
[1732317110338,0.9081,3307.1,3306.4,0.9593]
[1732317111057,0.0319113,3307.0,3306.4,0.9593]
[1732317111762,0.55,3306.9,3306.4,0.9593]
[1732317111926,0.55,3306.7,3306.4,0.9593]
[1732317112658,3.9081,3307.1,3306.4,0.9593]
[1732317112659,0.5819113,3307.0,3306.4,0.9593]
[1732317112836,0.5819113,3307.0,3306.5,0.06717492]
[1732317114034,0.5819113,3307.0,3306.1,0.9102]
[1732317114241,0.5819113,3307.0,3306.2,0.06717492]
[1732317117463,0.55,3307.0,3306.3,0.9334]
[1732317117636,0.9103,3307.8,3306.4,2.77455205]
[1732317117838,0.9103,3307.8,3306.5,1.00052969]
[1732317117839,0.9422113,3307.8,3306.5,1.00052969]
[1732317118244,0.9103,3307.8,3306.7,2.77455205]
[1732317118452,5.37,3308.4,3306.7,2.77455205]
[1732317118453,0.0319113,3307.7,3306.8,0.9334]
[1732317118671,0.0319113,3308.1,3306.9,0.9334]
[1732317119476,0.0319113,3308.1,3307.0,0.06703503]
[1732317119864,0.55,3308.0,3307.0,0.06703503]
[1732317120064,0.55,3307.8,3307.0,0.06703503]
[1732317120278,0.55,3308.0,3307.0,0.06703503]
[1732317120868,0.55,3307.8,3307.0,0.06703503]
[1732317121059,0.0319113,3307.7,3307.0,0.06703503]
[1732317121257,0.55,3307.6,3307.0,0.06703503]
[1732317121459,0.9422113,3308.5,3307.3,2.77455205]
[1732317121792,0.9422113,3308.5,3307.5,0.9334]
[1732317122151,0.9422113,3308.5,3307.6,0.06688809]
[1732317122885,0.55,3308.4,3307.6,0.06688809]
[1732317123180,0.55,3308.4,3307.2,0.9334]
[1732317123181,0.55,3308.2,3307.2,0.9334]
[1732317123388,0.55,3308.4,3306.8,0.3014]
[1732317123389,1.4603,3308.0,3307.7,0.06685419]
[1732317123706,0.55,3307.8,3306.9,0.9334]
[1732317123986,0.5819113,3307.9,3306.9,0.9334]
[1732317124189,0.5819113,3307.9,3307.0,0.06685419]
[1732317124494,0.55,3307.7,3307.0,0.06685419]
[1732317124785,0.5819113,3307.9,3307.0,0.06685419]
[1732317125144,0.5819113,3307.9,3306.9,0.9334]
[1732317126655,1.207249,3307.8,3306.9,0.9334]
[1732317126860,0.5819113,3307.7,3306.9,0.9334]
[1732317127568,0.55,3307.7,3306.9,0.9334]
[1732317127891,0.5819113,3307.7,3306.9,0.9334]
[1732317128213,0.55,3307.8,3306.9,0.9334]
[1732317129769,0.55,3307.9,3306.9,0.9334]
[1732317129970,0.55,3307.9,3307.0,0.37079521]
[1732317130184,0.55,3307.9,3307.0,0.43768612]
[1732317131073,0.5819113,3307.9,3307.0,0.43768612]
[1732317131672,0.55,3307.9,3307.1,0.3014]
[1732317131874,0.55,3307.9,3307.2,0.06688668]
[1732317132074,0.5819113,3307.9,3307.2,0.06688668]
[1732317132295,0.55,3307.7,3307.2,0.06688668]
[1732317133865,0.55,3307.5,3307.2,0.06688668]
[1732317134101,0.55,3307.7,3307.2,0.06688668]
[1732317134510,0.55,3307.7,3307.3,0.9632]
[1732317134799,0.9564,3308.6,3307.3,0.9632]
[1732317134959,0.9632,3308.1,3307.6,0.3014]
[1732317135162,0.0319113,3308.5,3307.6,0.3014]
[1732317135584,0.9632,3308.4,3307.7,0.36827256]
[1732317135809,0.0319113,3308.3,3307.7,0.36827256]
[1732317136361,0.55,3308.2,3307.7,0.36827256]
[1732317136586,0.55,3308.0,3307.7,0.36827256]
[1732317137304,0.55,3308.2,3307.7,0.36827256]
[1732317137813,0.55,3308.0,3307.7,0.36827256]
[1732317138306,0.55,3308.2,3307.7,0.36827256]
[1732317138505,0.55,3308.0,3307.7,0.36827256]
[1732317138873,0.5819113,3308.3,3307.7,0.36827256]
[1732317139708,0.55,3308.3,3307.7,0.36827256]
[1732317140199,0.55,3308.1,3307.7,0.36827256]
[1732317140587,0.55,3308.3,3307.7,0.36827256]
[1732317140971,0.9632,3308.4,3307.8,0.9632]
[1732317141171,0.9632,3308.4,3307.9,0.9632]
[1732317141381,0.9632,3308.4,3308.0,0.37679818]
[1732317141584,0.9564,3309.3,3308.1,3.73775205]
[1732317141788,0.0319113,3309.2,3308.2,1.2646]
[1732317142005,0.0319113,3309.2,3308.4,0.9632]
[1732317142575,0.0319113,3309.2,3308.5,0.06680478]
[1732317142897,0.55,3309.1,3308.5,0.06680478]
[1732317143098,0.55,3308.9,3308.5,0.06680478]
[1732317143290,0.55,3308.7,3308.5,0.06680478]
[1732317143973,0.5819113,3308.6,3308.5,0.06680478]
[1732317144179,0.55,3308.5,3308.1,0.9632]
[1732317144378,0.0319113,3308.4,3308.1,0.9632]
[1732317144806,0.55,3308.3,3308.1,0.9632]
[1732317145302,0.55,3308.6,3308.1,0.9632]
[1732317145515,0.55,3308.4,3307.7,1.2646]
[1732317145823,0.55,3308.2,3307.7,1.66851521]
[1732317148683,0.55,3308.2,3307.7,1.2646]
[1732317154222,0.55,3308.2,3307.8,0.06672713]
[1732317154602,0.55,3308.2,3307.7,1.2646]
[1732317154795,0.55,3308.2,3307.9,0.06672713]
[1732317154996,0.55,3308.2,3307.7,1.2646]
[1732317155194,0.55,3308.2,3308.0,0.06672713]
[1732317155402,0.55,3308.2,3307.7,1.2646]
[1732317155605,0.55,3308.2,3308.1,0.06672713]
[1732317156112,0.55,3308.2,3307.7,1.2646]
[1732317156314,0.55,3308.2,3307.8,0.06672713]
[1732317156747,0.55,3308.2,3307.7,1.2646]
[1732317156900,0.55,3308.2,3307.9,0.06672713]
[1732317157246,0.55,3308.2,3307.7,1.2646]
[1732317157545,0.55,3308.2,3307.7,1.66851521]
[1732317157838,0.55,3308.2,3307.8,0.06672713]
[1732317158336,1.4956,3308.2,3307.9,0.0667116]
[1732317158541,0.55,3308.0,3307.7,1.2646]
[1732317159240,0.55,3308.1,3307.7,1.2646]
[1732317161944,0.55,3307.9,3307.8,0.06673843]
[1732317162159,0.55,3308.1,3307.7,1.2646]
[1732317162347,0.55,3307.9,3307.8,0.06673984]
[1732317162639,0.55,3307.9,3307.7,0.3014]
[1732317162935,0.55,3307.9,3307.8,0.06673984]
[1732317163140,0.55,3307.9,3307.7,0.3014]
[1732317163481,0.0319113,3308.0,3307.7,0.3014]
[1732317163482,0.55,3308.1,3307.8,0.06673984]
[1732317163651,0.55,3307.9,3307.8,0.06673984]
[1732317163972,0.55,3307.9,3307.4,0.3014]
[1732317164134,0.5819113,3308.1,3307.8,0.06673984]
[1732317164337,0.5819113,3308.1,3307.4,0.3014]
[1732317164538,0.5819113,3308.1,3307.9,0.06676664]
[1732317164733,0.5819113,3308.1,3307.4,0.3014]
[1732317164977,0.5819113,3308.1,3308.0,0.06676664]
[1732317165178,0.5819113,3308.1,3307.4,0.3014]
[1732317165383,0.5819113,3308.1,3308.0,0.06676664]
[1732317165683,0.5819113,3308.1,3307.4,0.3014]
[1732317166194,0.5819113,3308.1,3307.6,0.3014]
[1732317166970,0.55,3307.9,3307.7,0.06676664]
[1732317167340,0.55,3308.1,3307.4,0.3014]
[1732317167570,0.0319113,3308.0,3307.8,0.06676664]
[1732317167782,0.55,3307.9,3307.4,0.3014]
[1732317168238,0.55,3307.9,3306.8,1.2061]
[1732317168239,0.55,3307.7,3306.8,1.2061]
[1732317168442,0.55,3307.7,3307.0,0.3014]
[1732317168667,0.55,3307.5,3307.0,0.3014]
[1732317168841,0.55,3307.3,3307.0,0.3014]
[1732317169379,0.0319113,3307.2,3306.9,0.3014]
[1732317169580,0.55,3307.1,3306.9,0.3014]
[1732317169970,0.55,3307.4,3306.9,0.3014]
[1732317170144,0.55,3307.2,3306.9,0.3014]
[1732317170344,0.55,3307.0,3306.7,0.3014]
[1732317170542,0.9399,3307.6,3306.7,0.3014]
[1732317170786,0.55,3307.5,3306.7,0.3014]
[1732317173261,0.5819113,3307.5,3306.7,0.3014]
[1732317173469,0.5819113,3307.5,3306.9,0.3014]
[1732317173959,0.5819113,3307.5,3307.0,0.36816664]
[1732317175187,0.55,3307.5,3307.0,0.36816664]
[1732317175354,0.5819113,3307.5,3307.0,0.36816664]
[1732317176160,0.55,3307.5,3307.0,0.36816664]
[1732317176970,0.5819113,3307.5,3307.0,0.36816664]
[1732317177468,0.55,3307.5,3307.0,0.36816664]
[1732317177672,0.5819113,3307.5,3307.0,0.36816664]
[1732317178001,0.55,3307.5,3307.0,0.36816664]
[1732317179062,0.55,3307.5,3307.1,0.9305]
[1732317179604,0.55,3307.5,3307.2,0.06701241]
[1732317179778,0.55,3307.8,3307.2,0.06701241]
[1732317179971,0.55,3307.6,3307.2,0.06701241]
[1732317180190,0.55,3307.8,3307.2,0.06701241]
[1732317181266,0.55,3308.0,3307.2,0.06701241]
[1732317181787,0.5819113,3308.0,3307.2,0.06701241]
[1732317181984,0.55,3308.0,3307.3,0.3014]
[1732317182405,0.55,3308.0,3307.4,0.9305]
[1732317182698,0.9577,3308.4,3307.4,0.9305]
[1732317182699,0.9896113,3308.4,3307.4,0.99751241]
[1732317182882,2.77455205,3309.3,3307.4,0.99751241]
[1732317182883,0.9577,3308.6,3307.7,0.3014]
[1732317183295,0.0319113,3308.5,3307.8,0.06691212]
[1732317184303,0.55,3308.4,3307.8,0.06691212]
[1732317184608,0.55,3308.2,3307.8,0.06691212]
[1732317184808,0.55,3308.4,3307.7,0.3014]
[1732317185013,0.55,3308.4,3307.9,0.06691212]
[1732317185014,0.55,3308.2,3307.9,0.06691212]
[1732317185165,0.0319113,3308.1,3307.9,0.06691212]
[1732317185370,0.55,3308.2,3307.7,0.3014]
[1732317185572,0.5819113,3308.1,3308.0,0.06678782]
[1732317185767,0.5819113,3308.1,3307.7,0.3014]
[1732317185969,0.5819113,3308.1,3308.0,0.06678782]
[1732317186267,0.5819113,3308.1,3307.7,0.3014]
[1732317186466,0.55,3308.1,3308.0,0.06678782]
[1732317186781,0.55,3308.4,3308.0,0.06678782]
[1732317186988,0.55,3308.2,3307.6,0.9305]
[1732317187167,0.0319113,3308.1,3307.6,0.9305]
[1732317187763,0.55,3308.5,3307.6,0.9305]
[1732317188482,0.55,3308.5,3307.8,0.9305]
[1732317188684,0.0319113,3308.8,3308.0,0.9305]
[1732317189104,0.0319113,3308.8,3308.1,0.06674688]
[1732317189771,0.9577,3308.6,3308.1,0.06674688]
[1732317189971,0.55,3308.5,3307.7,3.70505205]
[1732317190214,0.55,3308.5,3308.2,0.06674688]
[1732317190370,0.55,3308.5,3307.7,3.70505205]
[1732317190567,0.55,3308.5,3308.3,0.06674688]
[1732317190808,0.5819113,3308.5,3307.7,3.70505205]
[1732317191108,0.55,3308.5,3308.4,0.06674688]
[1732317191410,0.55,3308.5,3307.7,3.70505205]
[1732317191973,0.5819113,3308.5,3307.8,0.06674688]
[1732317192286,0.55,3308.5,3307.8,0.06674688]
[1732317194312,0.55,3308.5,3307.8,0.44392677]
[1732317196187,0.55,3308.3,3307.8,0.44392677]
[1732317196611,0.55,3308.5,3307.9,1.61365095]
[1732317196969,0.55,3308.5,3308.0,0.06673841]
[1732317198007,0.5,3308.5,3308.0,0.06673841]
[1732317198399,0.5319113,3308.5,3308.0,0.06673841]
[1732317198605,0.5,3308.5,3308.0,0.06673841]
[1732317203642,0.8824,3309.0,3308.3,0.9253]
[1732317204159,0.0319113,3308.9,3308.3,0.9253]
[1732317204711,0.55,3308.8,3308.4,0.06673841]
[1732317205108,0.55,3308.8,3308.3,0.9253]
[1732317206047,0.55,3308.9,3308.3,0.9253]
[1732317206343,0.55,3308.7,3308.3,0.9253]
[1732317206522,0.55,3308.9,3308.3,0.9253]
[1732317206856,0.55,3308.7,3308.3,0.9253]
[1732317207142,0.55,3308.7,3308.4,0.06673841]
[1732317207443,0.55,3308.5,3308.4,0.06673841]
[1732317207742,0.55,3308.8,3308.4,0.06673841]
[1732317208048,0.55,3308.9,3308.4,0.23042894]
[1732317208222,0.55,3308.9,3308.3,0.9253]
[1732317209343,0.55,3308.7,3308.5,1.31225095]
[1732317209650,0.8824,3309.3,3308.6,1.37893573]
[1732317209845,0.8824,3309.3,3308.7,0.9253]
[1732317210153,1.206777,3309.5,3308.7,0.9253]
[1732317210319,2.089177,3309.5,3308.8,1.3788595]
[1732317210520,0.8824,3309.7,3309.0,1.31225095]
[1732317210727,1.206638,3309.6,3309.0,1.31225095]